fUSD/lending_fUSD_20250720
["ID","MTS","AMOUNT","RATE_DAILY","PERIOD"]
[373456526,1753014679897,-500.0,0.00019799,2]
[373456527,1753014679906,-455.64800004,0.00019799,2]
[373456528,1753014679915,-500.0,0.00019799,2]
[373456529,1753014679924,-500.0,0.00019799,2]
[373456530,1753014679933,-500.0,0.00019799,2]
[373456531,1753014679942,-500.0,0.00019799,2]
[373456532,1753014680016,-477.36,0.00019799,2]
[373456533,1753014680025,-500.0,0.00019799,2]
[373456534,1753014680034,-500.0,0.00019799,2]
[373456535,1753014680043,-500.0,0.00019799,2]
[373456536,1753014680053,-500.0,0.00019799,2]
[373456537,1753014680062,-500.0,0.00019799,2]
[373456538,1753014680071,-500.0,0.00019799,2]
[373456539,1753014680080,-500.0,0.00019799,2]
[373456540,1753014680089,-500.0,0.00019799,2]
[373456541,1753014680098,-1000.0,0.00019817,2]
[373456542,1753014680108,-1000.0,0.0001982,2]
[373456543,1753014680117,-957.99,0.0001982,2]
[373456544,1753014680126,-1632.7,0.0001982,2]
[373456545,1753014680136,-1786.06,0.0001982,2]
[373456546,1753014680145,-6720.51,0.0001982,2]
[373456547,1753014680157,-899.08,0.0001982,2]
[373456548,1753014680166,-1176.45,0.0001982,2]
[373456549,1753014680176,-1869.33,0.0001982,2]
[373456550,1753014680185,-1000.0,0.00019821,2]
[373456551,1753014680194,-700.78,0.00019834,2]
[373456552,1753014680205,-480.0,0.00019834,2]
[373456553,1753014680217,-354.33907734,0.00019834,2]
[373456554,1753014680226,-1000.0,0.00019834,2]
[373456555,1753014680237,-160.77,0.00019834,2]
[373456556,1753014680246,-480.0,0.00019834,2]
[373456557,1753014680255,-480.0,0.00019834,2]
[373456558,1753014680264,-480.0,0.00019834,2]
[373456559,1753014680273,-480.0,0.00019834,2]
[373456560,1753014680282,-151.0,0.00019834,2]
[373456561,1753014680291,-152.615949,0.00019834,2]
[373456562,1753014680300,-152.615949,0.00019834,2]
[373456563,1753014680309,-151.0,0.00019834,2]
[373456564,1753014680318,-151.0,0.00019834,2]
[373456565,1753014680328,-151.0,0.00019834,2]
[373456566,1753014680337,-151.0,0.00019834,2]
[373456567,1753014680346,-154.648733,0.00019834,2]
[373456568,1753014680355,-154.648733,0.00019834,2]
[373456569,1753014680364,-33656.18,0.00019834,2]
[373456570,1753014680373,-3194.98,0.00019834,2]
[373456571,1753014680383,-6227.64,0.00019834,2]
[373456572,1753014680393,-151.0,0.00019835,2]
[373456573,1753014680403,-527.90298867,0.00019835,2]
[373456574,1753014680413,-151.0,0.00019835,2]
[373456575,1753014680422,-151.0,0.00019835,2]
[373456576,1753014680432,-151.0,0.00019835,2]
[373456577,1753014680441,-480.0,0.00019835,2]
[373456578,1753014680450,-480.0,0.00019835,2]
[373456579,1753014680460,-480.0,0.00019835,2]
[373456580,1753014680469,-480.0,0.00019835,2]
[373456581,1753014680478,-480.0,0.00019835,2]
[373456582,1753014680487,-525.09902645,0.00019835,2]
[373456583,1753014680497,-480.0,0.00019835,2]
[373456584,1753014680506,-480.0,0.00019835,2]
[373456585,1753014680516,-480.0,0.00019835,2]
[373456586,1753014680526,-480.0,0.00019835,2]
[373456587,1753014680535,-480.0,0.00019835,2]
[373456588,1753014680545,-480.0,0.00019835,2]
[373456589,1753014680554,-480.0,0.00019835,2]
[373456590,1753014680563,-480.0,0.00019835,2]
[373456591,1753014680572,-480.0,0.00019835,2]
[373456592,1753014680581,-1149.63,0.00019835,2]
[373456593,1753014680591,-480.0,0.00019835,2]
[373456594,1753014680601,-151.0,0.00019835,2]
[373456595,1753014680610,-480.0,0.00019835,2]
[373456596,1753014680618,-480.0,0.00019835,2]
[373456597,1753014680627,-1157.17,0.00019835,2]
[373456598,1753014680637,-1110.3,0.00019835,2]
[373456599,1753014680646,-230.7310256,0.00019835,2]
[373456600,1753014680659,-624.25,0.00019835,2]
[373456601,1753014680668,-2174.54,0.00019835,2]
[373456602,1753014680677,-797.31,0.00019835,2]
[373456603,1753014680686,-1022.195767,0.00019835,2]
[373456604,1753014680694,-480.0,0.00019835,2]
[373456605,1753014680703,-663.69,0.00019835,2]
[373456606,1753014680713,-151.0,0.00019835,2]
[373456607,1753014680722,-480.0,0.00019835,2]
[373456608,1753014680731,-616.09,0.00019835,2]
[373456609,1753014680740,-480.0,0.00019835,2]
[373456610,1753014680749,-151.0,0.00019835,2]
[373456611,1753014680758,-1284.099981,0.00019835,2]
[373456612,1753014680767,-1246.634372,0.00019835,2]
[373456613,1753014680777,-480.0,0.00019835,2]
[373456614,1753014680785,-664.53,0.00019835,2]
[373456615,1753014680795,-256.53771561,0.00019835,2]
[373456616,1753014680804,-200.618341,0.00019835,2]
[373456617,1753014680813,-1646.34,0.00019835,2]
[373456618,1753014680822,-480.0,0.00019835,2]
[373456619,1753014680831,-200.618341,0.00019835,2]
[373456620,1753014680840,-480.0,0.00019835,2]
[373456621,1753014680849,-480.0,0.00019835,2]
[373456622,1753014680859,-151.0,0.00019835,2]
[373456623,1753014680868,-151.0,0.00019835,2]
[373456624,1753014680877,-480.0,0.00019835,2]
[373456625,1753014680885,-480.0,0.00019835,2]
[373456626,1753014680894,-151.0,0.00019835,2]
[373456627,1753014680906,-663.81,0.00019835,2]
[373456628,1753014680915,-151.0,0.00019835,2]
[373456629,1753014680925,-603.17,0.00019835,2]
[373456630,1753014680934,-885.52,0.00019835,2]
[373456631,1753014680943,-508.26,0.00019835,2]
[373456632,1753014680952,-646.27,0.00019835,2]
[373456633,1753014680961,-741.47,0.00019835,2]
[373456634,1753014680970,-650.94,0.00019835,2]
[373456635,1753014680979,-480.0,0.00019835,2]
[373456636,1753014680988,-2188.28,0.00019835,2]
[373456637,1753014680997,-480.0,0.00019835,2]
[373456638,1753014681006,-3039.93,0.00019835,2]
[373456639,1753014681015,-480.0,0.00019835,2]
[373456640,1753014681025,-699.61,0.00019835,2]
[373456641,1753014681034,-185.823099,0.00019835,2]
[373456642,1753014681043,-182.030409,0.00019835,2]
[373456643,1753014681051,-540.27,0.00019835,2]
[373456644,1753014681061,-480.0,0.00019835,2]
[373456645,1753014681070,-911.93,0.00019835,2]
[373456646,1753014681078,-480.0,0.00019835,2]
[373456647,1753014681087,-480.0,0.00019835,2]
[373456648,1753014681097,-480.0,0.00019835,2]
[373456649,1753014681105,-480.0,0.00019835,2]
[373456650,1753014681114,-813.91,0.00019835,2]
[373456651,1753014681124,-480.0,0.00019835,2]
[373456652,1753014681133,-652.74,0.00019835,2]
[373456653,1753014681141,-480.0,0.00019835,2]
[373456654,1753014681152,-679.68,0.00019835,2]
[373456655,1753014681162,-158.6007,0.00019835,2]
[373456656,1753014681171,-1671.03,0.00019835,2]
[373456657,1753014681181,-492.89080986,0.00019835,2]
[373456658,1753014681191,-480.0,0.00019835,2]
[373456659,1753014681200,-583.7,0.00019835,2]
[373456660,1753014681210,-620.3,0.00019835,2]
[373456661,1753014681219,-480.0,0.00019835,2]
[373456662,1753014681228,-480.0,0.00019835,2]
[373456663,1753014681238,-480.0,0.00019835,2]
[373456664,1753014681247,-151.0,0.00019835,2]
[373456665,1753014681256,-480.0,0.00019835,2]
[373456666,1753014681265,-610.89,0.00019835,2]
[373456667,1753014681273,-480.0,0.00019835,2]
[373456668,1753014681282,-768.41,0.00019835,2]
[373456669,1753014681291,-765.32,0.00019835,2]
[373456670,1753014681300,-480.0,0.00019835,2]
[373456671,1753014681310,-480.0,0.00019835,2]
[373456672,1753014681319,-480.0,0.00019835,2]
[373456673,1753014681329,-480.0,0.00019835,2]
[373456674,1753014681338,-575.87,0.00019835,2]
[373456675,1753014681347,-983.09,0.00019835,2]
[373456676,1753014681356,-151.0,0.00019835,2]
[373456677,1753014681366,-593.69,0.00019835,2]
[373456678,1753014681375,-832.57,0.00019835,2]
[373456679,1753014681385,-263.70556813,0.00019835,2]
[373456680,1753014681395,-151.0,0.00019835,2]
[373456681,1753014681405,-480.0,0.00019835,2]
[373456682,1753014681415,-480.0,0.00019835,2]
[373456683,1753014681424,-480.0,0.00019835,2]
[373456684,1753014681434,-480.0,0.00019835,2]
[373456685,1753014681444,-737.5,0.00019835,2]
[373456686,1753014681454,-480.0,0.00019835,2]
[373456687,1753014681465,-932.28,0.00019835,2]
[373456688,1753014681474,-480.0,0.00019835,2]
[373456689,1753014681484,-480.0,0.00019835,2]
[373456690,1753014681494,-480.0,0.00019835,2]
[373456691,1753014681503,-510.1,0.00019835,2]
[373456692,1753014681512,-480.0,0.00019835,2]
[373456693,1753014681522,-480.0,0.00019835,2]
[373456694,1753014681531,-480.0,0.00019835,2]
[373456695,1753014681540,-480.0,0.00019835,2]
[373456696,1753014681551,-836.95,0.00019835,2]
[373456697,1753014681560,-480.0,0.00019835,2]
[373456698,1753014681570,-480.0,0.00019835,2]
[373456699,1753014681579,-480.0,0.00019835,2]
[373456700,1753014681589,-574.9259774,0.00019835,2]
[373456701,1753014681599,-494.08511548,0.00019835,2]
[373456702,1753014681609,-870.11,0.00019835,2]
[373456703,1753014681619,-511.37,0.00019835,2]
[373456704,1753014681628,-151.0,0.00019835,2]
[373456705,1753014681638,-695.17,0.00019835,2]
[373456706,1753014681649,-480.0,0.00019835,2]
[373456707,1753014681660,-151.0,0.00019835,2]
[373456708,1753014681670,-480.0,0.00019835,2]
[373456709,1753014681679,-480.0,0.00019835,2]
[373456710,1753014681690,-820.22,0.00019835,2]
[373456711,1753014681699,-480.0,0.00019835,2]
[373456712,1753014681709,-480.0,0.00019835,2]
[373456713,1753014681718,-438.68558525,0.00019835,2]
[373456714,1753014681730,-751.71,0.00019835,2]
[373456715,1753014681741,-1085.44,0.00019835,2]
[373456716,1753014681750,-341.66606244,0.00019835,2]
[373456717,1753014681760,-480.0,0.00019835,2]
[373456718,1753014681770,-543.84,0.00019835,2]
[373456719,1753014681779,-917.97,0.00019835,2]
[373456720,1753014681789,-480.0,0.00019835,2]
[373456721,1753014681798,-600.52,0.00019835,2]
[373456722,1753014681808,-612.49,0.00019835,2]
[373456723,1753014681818,-1202.26,0.00019835,2]
[373456724,1753014681827,-1497.64,0.00019835,2]
[373456725,1753014681836,-480.0,0.00019835,2]
[373456726,1753014681846,-480.0,0.00019835,2]
[373456727,1753014681856,-480.0,0.00019835,2]
[373456728,1753014681866,-480.0,0.00019835,2]
[373456729,1753014681877,-480.0,0.00019835,2]
[373456730,1753014681887,-642.04,0.00019835,2]
[373456731,1753014681897,-520.78,0.00019835,2]
[373456732,1753014681907,-480.0,0.00019835,2]
[373456733,1753014681917,-496.41,0.00019835,2]
[373456734,1753014681926,-260.0,0.00019835,2]
[373456735,1753014681936,-818.44,0.00019835,2]
[373456736,1753014681947,-480.0,0.00019835,2]
[373456737,1753014681957,-761.66,0.00019835,2]
[373456738,1753014681967,-480.0,0.00019835,2]
[373456739,1753014681976,-185.823096,0.00019835,2]
[373456740,1753014681986,-480.0,0.00019835,2]
[373456741,1753014681996,-182.030406,0.00019835,2]
[373456742,1753014682006,-480.0,0.00019835,2]
[373456743,1753014682015,-2352.9,0.00019835,2]
[373456744,1753014682026,-480.0,0.00019835,2]
[373456745,1753014682035,-480.0,0.00019835,2]
[373456746,1753014682046,-480.0,0.00019835,2]
[373456747,1753014682056,-1713.86,0.00019835,2]
[373456748,1753014682066,-783.08,0.00019835,2]
[373456749,1753014682076,-158.600699,0.00019835,2]
[373456750,1753014682086,-681.27,0.00019835,2]
[373456751,1753014682096,-480.0,0.00019835,2]
[373456752,1753014682105,-1257.01,0.00019835,2]
[373456753,1753014682115,-480.0,0.00019835,2]
[373456754,1753014682125,-785.79,0.00019835,2]
[373456755,1753014682135,-593.27,0.00019835,2]
[373456756,1753014682144,-480.0,0.00019835,2]
[373456757,1753014682156,-823.1,0.00019835,2]
[373456758,1753014682165,-1245.21,0.00019835,2]
[373456759,1753014682175,-480.0,0.00019835,2]
[373456760,1753014682185,-492.88,0.00019835,2]
[373456761,1753014682194,-480.0,0.00019835,2]
[373456762,1753014682204,-480.0,0.00019835,2]
[373456763,1753014682214,-480.0,0.00019835,2]
[373456764,1753014682224,-480.0,0.00019835,2]
[373456765,1753014682233,-480.04,0.00019835,2]
[373456766,1753014682242,-480.0,0.00019835,2]
[373456767,1753014682252,-333.41308594,0.00019835,2]
[373456768,1753014682261,-662.76,0.00019835,2]
[373456769,1753014682271,-719.41,0.00019835,2]
[373456770,1753014682280,-480.0,0.00019835,2]
[373456771,1753014682290,-738.09,0.00019835,2]
[373456772,1753014682299,-480.0,0.00019835,2]
[373456773,1753014682309,-724.27,0.00019835,2]
[373456774,1753014682318,-480.0,0.00019835,2]
[373456775,1753014682329,-480.0,0.00019835,2]
[373456776,1753014682339,-733.91,0.00019835,2]
[373456777,1753014682348,-480.0,0.00019835,2]
[373456778,1753014682358,-647.33,0.00019835,2]
[373456779,1753014682368,-480.0,0.00019835,2]
[373456780,1753014682378,-731.29,0.00019835,2]
[373456781,1753014682387,-1454.54,0.00019835,2]
[373456782,1753014682397,-296.41194703,0.00019835,2]
[373456783,1753014682407,-797.39,0.00019835,2]
[373456784,1753014682417,-368.52890162,0.00019835,2]
[373456785,1753014682427,-480.0,0.00019835,2]
[373456786,1753014682438,-599.98,0.00019835,2]
[373456787,1753014682447,-480.0,0.00019835,2]
[373456788,1753014682457,-1373.77,0.00019835,2]
[373456789,1753014682467,-480.0,0.00019835,2]
[373456790,1753014682477,-480.0,0.00019835,2]
[373456791,1753014682486,-151.0,0.00019835,2]
[373456792,1753014682497,-480.0,0.00019835,2]
[373456793,1753014682507,-500.0,0.00019835,2]
[373456794,1753014682517,-2330.59,0.00019835,2]
[373456795,1753014682527,-793.43,0.00019835,2]
[373456796,1753014682537,-480.0,0.00019835,2]
[373456797,1753014682546,-2644.46,0.00019835,2]
[373456798,1753014682556,-480.0,0.00019835,2]
[373456799,1753014682567,-6377.84,0.00019835,2]
[373456800,1753014682577,-480.0,0.00019835,2]
[373456801,1753014682587,-480.0,0.00019835,2]
[373456802,1753014682598,-480.0,0.00019835,2]
[373456803,1753014682607,-816.21,0.00019835,2]
[373456804,1753014682618,-865.56,0.00019835,2]
[373456805,1753014682628,-480.0,0.00019835,2]
[373456806,1753014682639,-480.0,0.00019835,2]
[373456807,1753014682650,-480.0,0.00019835,2]
[373456808,1753014682661,-480.0,0.00019835,2]
[373456809,1753014682671,-803.64,0.00019835,2]
[373456810,1753014682681,-991.22,0.00019835,2]
[373456811,1753014682691,-480.0,0.00019835,2]
[373456812,1753014682700,-669.29,0.00019835,2]
[373456813,1753014682710,-2749.41,0.00019835,2]
[373456814,1753014682719,-480.0,0.00019835,2]
[373456815,1753014682729,-480.0,0.00019835,2]
[373456816,1753014682739,-480.0,0.00019835,2]
[373456817,1753014682749,-480.0,0.00019835,2]
[373456818,1753014682758,-1056.65,0.00019835,2]
[373456819,1753014682768,-480.0,0.00019835,2]
[373456820,1753014682778,-480.0,0.00019835,2]
[373456821,1753014682787,-480.0,0.00019835,2]
[373456822,1753014682797,-480.0,0.00019835,2]
[373456823,1753014682806,-516.78,0.00019835,2]
[373456824,1753014682815,-1172.66,0.00019835,2]
[373456825,1753014682825,-652.96,0.00019835,2]
[373456826,1753014682835,-480.0,0.00019835,2]
[373456827,1753014682844,-2043.43,0.00019835,2]
[373456828,1753014682853,-480.0,0.00019835,2]
[373456829,1753014682862,-185.823095,0.00019835,2]
[373456830,1753014682872,-182.030405,0.00019835,2]
[373456831,1753014682882,-586.2,0.00019835,2]
[373456832,1753014682891,-188.13371821,0.00019835,2]
[373456833,1753014682903,-2088.09,0.00019835,2]
[373456834,1753014682912,-480.0,0.00019835,2]
[373456835,1753014682922,-649.88,0.00019835,2]
[373456836,1753014682931,-992.75,0.00019835,2]
[373456837,1753014682941,-1042.02,0.00019835,2]
[373456838,1753014682951,-1426.32,0.00019835,2]
[373456839,1753014682960,-231.80608032,0.00019835,2]
[373456840,1753014682970,-480.0,0.00019835,2]
[373456841,1753014682979,-947.24,0.00019835,2]
[373456842,1753014682989,-158.600699,0.00019835,2]
[373456843,1753014682998,-1077.74,0.00019835,2]
[373456844,1753014683008,-2222.89,0.00019835,2]
[373456845,1753014683019,-806.02,0.00019835,2]
[373456846,1753014683029,-4000.2,0.00019835,2]
[373456847,1753014683040,-3738.98,0.00019835,2]
[373456848,1753014683050,-736.85,0.00019835,2]
[373456849,1753014683060,-836.43,0.00019835,2]
[373456850,1753014683070,-734.26,0.00019835,2]
[373456851,1753014683080,-618.09,0.00019835,2]
[373456852,1753014683090,-316.53,0.00019835,2]
[373456853,1753014683099,-1581.14,0.00019835,2]
[373456854,1753014683108,-5653.96,0.00019835,2]
[373456855,1753014683118,-1818.28,0.00019835,2]
[373456856,1753014683128,-1605.03,0.00019835,2]
[373456857,1753014683137,-2210.19,0.00019835,2]
[373456858,1753014683146,-626.59,0.00019835,2]
[373456859,1753014683157,-314.355759,0.00019835,2]
[373456860,1753014683167,-1392.17,0.00019835,2]
[373456861,1753014683176,-480.0,0.00019835,2]
[373456862,1753014683186,-1255.43,0.00019835,2]
[373456863,1753014683195,-480.0,0.00019835,2]
[373456864,1753014683204,-165.25758829,0.00019835,2]
[373456865,1753014683214,-314.355759,0.00019835,2]
[373456866,1753014683224,-1424.21,0.00019835,2]
[373456867,1753014683234,-480.0,0.00019835,2]
[373456868,1753014683243,-1719.33,0.00019835,2]
[373456869,1753014683253,-480.0,0.00019835,2]
[373456870,1753014683263,-1200.11,0.00019835,2]
[373456871,1753014683272,-1523.7,0.00019835,2]
[373456872,1753014683282,-481.92,0.00019835,2]
[373456873,1753014683292,-398.62948062,0.00019835,2]
[373456874,1753014683302,-480.0,0.00019835,2]
[373456875,1753014683312,-151.0,0.00019835,2]
[373456876,1753014683322,-480.0,0.00019835,2]
[373456877,1753014683331,-884.39,0.00019835,2]
[373456878,1753014683341,-151.0,0.00019835,2]
[373456879,1753014683350,-722.15,0.00019835,2]
[373456880,1753014683360,-1757.85,0.00019835,2]
[373456881,1753014683369,-782.86,0.00019835,2]
[373456882,1753014683379,-820.43,0.00019835,2]
[373456883,1753014683389,-1726.54,0.00019835,2]
[373456884,1753014683399,-547.51,0.00019835,2]
[373456885,1753014683409,-1010.01,0.00019835,2]
[373456886,1753014683419,-480.0,0.00019835,2]
[373456887,1753014683429,-505.22,0.00019835,2]
[373456888,1753014683439,-480.0,0.00019835,2]
[373456889,1753014683449,-533.37130834,0.00019835,2]
[373456890,1753014683459,-772.32,0.00019835,2]
[373456891,1753014683469,-480.0,0.00019835,2]
[373456892,1753014683479,-480.0,0.00019835,2]
[373456893,1753014683489,-2258.72,0.00019835,2]
[373456894,1753014683498,-480.0,0.00019835,2]
[373456895,1753014683508,-413.33312262,0.00019835,2]
[373456896,1753014683518,-1025.46,0.00019835,2]
[373456897,1753014683528,-513.2,0.00019835,2]
[373456898,1753014683538,-1424.86,0.00019835,2]
[373456899,1753014683707,-814.33,0.00019835,2]
[373456900,1753014683738,-1595.03,0.00019835,2]
[373456901,1753014683748,-3370.07,0.00019835,2]
[373456902,1753014683757,-2379.81,0.00019835,2]
[373456903,1753014683766,-683.76,0.00019835,2]
[373456904,1753014683776,-480.0,0.00019835,2]
[373456905,1753014683786,-480.0,0.00019835,2]
[373456906,1753014683795,-4765.78,0.00019835,2]
[373456907,1753014683805,-536.94,0.00019835,2]
[373456908,1753014683815,-480.0,0.00019835,2]
[373456909,1753014683824,-480.0,0.00019835,2]
[373456910,1753014683833,-1771.29,0.00019835,2]
[373456911,1753014683842,-950.1,0.00019835,2]
[373456912,1753014683851,-480.0,0.00019835,2]
[373456913,1753014683861,-480.0,0.00019835,2]
[373456914,1753014683870,-480.0,0.00019835,2]
[373456915,1753014683879,-1361.55,0.00019835,2]
[373456916,1753014683888,-1848.06,0.00019835,2]
[373456917,1753014683900,-925.91,0.00019835,2]
[373456918,1753014683908,-637.06,0.00019835,2]
[373456919,1753014683917,-838.76,0.00019835,2]
[373456920,1753014683927,-1312.93,0.00019835,2]
[373456921,1753014683936,-4317.78,0.00019835,2]
[373456922,1753014683945,-756.37,0.00019835,2]
[373456923,1753014683954,-9271.75,0.00019835,2]
[373456924,1753014683963,-480.0,0.00019835,2]
[373456925,1753014683972,-1431.74,0.00019835,2]
[373456926,1753014683981,-480.0,0.00019835,2]
[373456927,1753014683990,-1470.98,0.00019835,2]
[373456928,1753014683999,-4009.68,0.00019835,2]
[373456929,1753014684008,-1530.7,0.00019835,2]
[373456930,1753014684018,-789.2,0.00019835,2]
[373456931,1753014684027,-692.42,0.00019835,2]
[373456932,1753014684037,-863.3,0.00019835,2]
[373456933,1753014684047,-1176.53,0.00019835,2]
[373456934,1753014684057,-841.86,0.00019835,2]
[373456935,1753014684067,-480.0,0.00019835,2]
[373456936,1753014684077,-1432.34,0.00019835,2]
[373456937,1753014684087,-838.11,0.00019835,2]
[373456938,1753014684097,-698.77,0.00019835,2]
[373456939,1753014684107,-480.0,0.00019835,2]
[373456940,1753014684117,-654.3,0.00019835,2]
[373456941,1753014684127,-480.0,0.00019835,2]
[373456942,1753014684137,-565.239474,0.00019835,2]
[373456943,1753014684146,-937.24,0.00019835,2]
[373456944,1753014684157,-969.32,0.00019835,2]
[373456945,1753014684167,-480.0,0.00019835,2]
[373456946,1753014684176,-2155.04,0.00019835,2]
[373456947,1753014684184,-2293.75,0.00019835,2]
[373456948,1753014684193,-565.239474,0.00019835,2]
[373456949,1753014684202,-232.07,0.00019835,2]
[373456950,1753014684211,-1679.97,0.00019835,2]
[373456951,1753014684220,-1649.28,0.00019835,2]
[373456952,1753014684229,-481.48,0.00019835,2]
[373456953,1753014684238,-4949.4,0.00019835,2]
[373456954,1753014684247,-480.0,0.00019835,2]
[373456955,1753014684255,-480.0,0.00019835,2]
[373456956,1753014684264,-780.69,0.00019835,2]
[373456957,1753014684273,-1361.96,0.00019835,2]
[373456958,1753014684282,-1646.77,0.00019835,2]
[373456959,1753014684292,-787.28,0.00019835,2]
[373456960,1753014684302,-1739.9,0.00019835,2]
[373456961,1753014684312,-583.71,0.00019835,2]
[373456962,1753014684321,-480.0,0.00019835,2]
[373456963,1753014684331,-2239.25,0.00019835,2]
[373456964,1753014684340,-488.08,0.00019835,2]
[373456965,1753014684350,-182.030406,0.00019835,2]
[373456966,1753014684359,-185.823095,0.00019835,2]
[373456967,1753014684369,-612.5,0.00019835,2]
[373456968,1753014684379,-975.55,0.00019835,2]
[373456969,1753014684388,-1266.74,0.00019835,2]
[373456970,1753014684399,-3466.23,0.00019835,2]
[373456971,1753014684409,-1000.87,0.00019835,2]
[373456972,1753014684419,-1536.88,0.00019835,2]
[373456973,1753014684428,-491.87,0.00019835,2]
[373456974,1753014684443,-480.0,0.00019835,2]
[373456975,1753014684459,-480.0,0.00019835,2]
[373456976,1753014684469,-870.17,0.00019835,2]
[373456977,1753014684479,-480.0,0.00019835,2]
[373456978,1753014684489,-1120.17,0.00019835,2]
[373456979,1753014684499,-1066.19,0.00019835,2]
[373456980,1753014684510,-437.10491896,0.00019835,2]
[373456981,1753014684520,-1692.83,0.00019835,2]
[373456982,1753014684530,-1127.39,0.00019835,2]
[373456983,1753014684539,-480.0,0.00019835,2]
[373456984,1753014684549,-1309.68,0.00019835,2]
[373456985,1753014684559,-480.0,0.00019835,2]
[373456986,1753014684569,-2168.91,0.00019835,2]
[373456987,1753014684578,-1586.53,0.00019835,2]
[373456988,1753014684588,-5167.59,0.00019835,2]
[373456989,1753014684597,-480.0,0.00019835,2]
[373456990,1753014684607,-2843.64,0.00019835,2]
[373456991,1753014684617,-4167.7,0.00019835,2]
[373456992,1753014684627,-1125.81,0.00019835,2]
[373456993,1753014684637,-1714.93,0.00019835,2]
[373456994,1753014684648,-480.0,0.00019835,2]
[373456995,1753014684662,-480.0,0.00019835,2]
[373456996,1753014684671,-485.89,0.00019835,2]
[373456997,1753014684681,-158.6007,0.00019835,2]
[373456998,1753014684691,-728.46,0.00019835,2]
[373456999,1753014684701,-938.16,0.00019835,2]
[373457000,1753014684711,-480.0,0.00019835,2]
[373457001,1753014684720,-480.0,0.00019835,2]
[373457002,1753014684730,-675.77,0.00019835,2]
[373457003,1753014684740,-921.94,0.00019835,2]
[373457004,1753014684750,-480.0,0.00019835,2]
[373457005,1753014684759,-3135.79,0.00019835,2]
[373457006,1753014684769,-1176.04,0.00019835,2]
[373457007,1753014684779,-583.29,0.00019835,2]
[373457008,1753014684789,-480.0,0.00019835,2]
[373457009,1753014684799,-1139.14,0.00019835,2]
[373457010,1753014684809,-150.23,0.00019835,2]
[373457011,1753014684819,-1174.28,0.00019836,2]
[373457012,1753014684829,-172.26,0.00019836,2]
[373457013,1753014684840,-889.95235,0.0001985,2]
[373457014,1753014684850,-503.27417303,0.00019873,2]
[373457015,1753014684861,-503.37509628,0.00019873,2]
[373457016,1753014684871,-500.0,0.00019873,2]
[373457017,1753014684882,-500.0,0.00019873,2]
[373457018,1753014684892,-500.0,0.00019873,2]
[373457019,1753014684904,-500.0,0.00019873,2]
[373457020,1753014684914,-500.0,0.00019873,2]
[373457021,1753014684924,-500.0,0.00019873,2]
[373457022,1753014684934,-567.21685389,0.00019873,2]
[373457023,1753014684945,-500.0,0.00019873,2]
[373457024,1753014684955,-500.0,0.00019873,2]
[373457025,1753014684966,-500.0,0.00019873,2]